fUST/lending_fUST_20260512
["ID","MTS","AMOUNT","RATE_DAILY","PERIOD"]
[422038903,1778515832000,-163.44990013,0.000107,2]
[422038862,1778515832000,-182.20240826,4.901e-05,2]
[422038860,1778515832000,-5000.0,4.851e-05,2]
[422038864,1778515832000,-12.68733195,4.901e-05,2]
[422038866,1778515832000,-153.91,5e-05,2]
[422038878,1778515832000,-293.0,8.71e-05,2]
[422038868,1778515832000,-229.96989345,6.901e-05,2]
[422038870,1778515832000,-200.0,7.181e-05,2]
[422038872,1778515832000,-152.37193731,8.7e-05,2]
[422038874,1778515832000,-156.19908019,8.7e-05,2]
[422038880,1778515832000,-300.0,8.71e-05,2]
[422038876,1778515832000,-157.30824693,8.7e-05,2]
[422038901,1778515832000,-172.72061841,0.000107,2]
[422038884,1778515832000,-265.05004668,8.9e-05,2]
[422038899,1778515832000,-166.42940525,0.000107,2]
[422038897,1778515832000,-153.86418612,0.000107,2]
[422038905,1778515832000,-79975.07977894,0.00010758,2]
[422038895,1778515832000,-745.45611116,9.425e-05,2]
[422038882,1778515832000,-300.0,8.899e-05,2]
[422038893,1778515832000,-1768.80647576,9.425e-05,2]
[422038889,1778515832000,-300.0,8.986e-05,2]
[422038887,1778515832000,-300.0,8.986e-05,2]
[422038885,1778515832000,-300.0,8.986e-05,2]
[422038891,1778515832000,-152.0,9.335e-05,2]
[422039007,1778515841000,-327.55422988,0.00010758,2]
[422039020,1778515844000,-11239.21160683,0.00010758,2]
[422039019,1778515844000,-7846.8526,0.00010758,2]
[422039025,1778515847000,-5000.0,0.00010651,2]
[422039026,1778515847000,-28.71724471,0.00010758,2]
[422039027,1778515847000,-4248.63857859,0.00010758,2]
[422039028,1778515847000,-13002.32151757,0.00010758,2]
[422039029,1778515847000,-3842.95381715,0.00010758,2]
[422039030,1778515847000,-634.141,0.00010758,2]
[422039154,1778517035000,-188.83809488,9.424e-05,2]
[422039155,1778517036000,-4800.0,9.685e-05,2]
[422039215,1778517040000,-188.83809488,9.554e-05,2]
[422039216,1778517040000,-4565.7590256,9.685e-05,2]
[422039228,1778517040000,-3623.75368597,0.00010062,2]
[422039217,1778517040000,-1465.12211834,9.762e-05,2]
[422039219,1778517040000,-3571.91811784,9.962e-05,2]
[422039220,1778517040000,-646.427,0.0001,2]
[422039218,1778517040000,-3287.1998143,9.862e-05,2]
[422039226,1778517040000,-917.0,0.0001,2]
[422039224,1778517040000,-6197.67181572,0.0001,2]
[422039227,1778517040000,-5000.0,0.0001,2]
[422039225,1778517040000,-5000.0,0.0001,2]
[422039229,1778517040000,-12979.01117799,0.00010162,2]
[422039223,1778517040000,-438.05624803,0.0001,2]
[422039221,1778517040000,-150.30811288,0.0001,2]
[422039231,1778517040000,-8540.47415794,0.00010162,2]
[422039233,1778517041000,-11703.32405725,0.00010162,2]
[422039256,1778517052000,-4290.6163912,0.00010162,2]
[422039267,1778517053000,-150.88898077,0.000105,2]
[422039273,1778517053000,-1059.0518238,0.00010569,2]
[422039269,1778517053000,-8914.33095471,0.00010558,2]
[422039268,1778517053000,-150.54474555,0.000105,2]
[422039263,1778517053000,-644.79446246,0.00010319,2]
[422039278,1778517053000,-231.92224551,0.000106,2]
[422039275,1778517053000,-169.29910217,0.000106,2]
[422039276,1778517053000,-263.31028759,0.000106,2]
[422039274,1778517053000,-165.02521857,0.000106,2]
[422039266,1778517053000,-150.6283633,0.000105,2]
[422039258,1778517053000,-3833.51285538,0.00010162,2]
[422039257,1778517053000,-251.60756272,0.00010162,2]
[422039264,1778517053000,-4634.82664325,0.00010362,2]
[422039260,1778517053000,-3960.30755774,0.00010162,2]
[422039270,1778517053000,-1078.1992998,0.00010569,2]
[422039259,1778517053000,-2022.56356312,0.00010162,2]
[422039272,1778517053000,-2054.7303199,0.00010569,2]
[422039291,1778517053000,-18.94511402,0.00010957,2]
[422039265,1778517053000,-150.14771274,0.000105,2]
[422039261,1778517053000,-4298.16682711,0.00010262,2]
[422039287,1778517053000,-500.0,0.00010957,2]
[422039283,1778517053000,-515.01382544,0.00010957,2]
[422039285,1778517053000,-500.0,0.00010957,2]
[422039286,1778517053000,-500.0,0.00010957,2]
[422039284,1778517053000,-500.0,0.00010957,2]
[422039282,1778517053000,-500.0,0.00010885,2]
[422039289,1778517053000,-500.0,0.00010957,2]
[422039288,1778517053000,-500.0,0.00010957,2]
[422039279,1778517053000,-1392.85379398,0.00010656,3]
[422039280,1778517053000,-185.0,0.00010742,2]
[422039290,1778517053000,-500.0,0.00010957,2]
[422039277,1778517053000,-217.14666553,0.000106,2]
[422039271,1778517053000,-3045.6622438,0.00010569,2]
[422039262,1778517053000,-172.22050849,0.00010319,2]
[422039281,1778517053000,-443.0,0.00010742,2]
[422039297,1778517470000,-613.188,9.861e-05,2]
[422039298,1778517470000,-189.43344365,9.93e-05,2]
[422039299,1778517470000,-5983.39142742,9.962e-05,2]
[422039300,1778517470000,-300.0,9.998e-05,2]
[422039301,1778517470000,-300.0,9.998e-05,2]
[422039302,1778517470000,-300.0,9.999e-05,2]
[422039306,1778517470000,-5000.0,0.0001,2]
[422039304,1778517470000,-300.0,9.999e-05,2]
[422039305,1778517470000,-1200.0,9.999e-05,2]
[422039307,1778517470000,-5000.0,0.0001,2]
[422039308,1778517470000,-5000.0,0.0001,2]
[422039309,1778517470000,-2165.88741796,0.0001,2]
[422039303,1778517470000,-300.0,9.999e-05,2]
[422039310,1778517471000,5000.0,0.0001002,2]
[422039311,1778517493000,5000.0,0.0001002,2]
[422039312,1778517515000,5000.0,0.0001002,2]
[422039313,1778517537000,5000.0,0.0001002,2]
[422039314,1778517545000,5000.0,0.0001002,2]
[422039315,1778517560000,5000.0,0.0001002,2]
[422039316,1778517582000,5000.0,0.0001002,2]
[422039317,1778517603000,5000.0,0.0001002,2]
[422039318,1778517621000,5000.0,0.0001002,2]
[422039319,1778517626000,5000.0,0.0001002,2]
[422039320,1778517636000,61673.50994682,9.962e-05,2]
[422039321,1778517648000,5000.0,0.0001002,2]
[422039322,1778517670000,5000.0,0.0001002,2]
[422039323,1778517692000,5000.0,0.0001002,2]
[422039324,1778517714000,5000.0,0.0001002,2]
[422039325,1778517721000,841674.58976415,9.962e-05,2]
[422039364,1778518233000,-300.0,9.424e-05,2]
[422039372,1778518233000,-5455.93684015,9.425e-05,2]
[422039382,1778518233000,-1349.64553418,9.425e-05,2]
[422039369,1778518233000,-1132.51579489,9.425e-05,2]
[422039380,1778518233000,-1421.2607696,9.425e-05,2]
[422039367,1778518233000,-379.45363298,9.425e-05,2]
[422039563,1778518238000,-500.0,9.961e-05,2]
[422039567,1778518238000,-310.79520762,9.961e-05,2]
[422039568,1778518238000,-500.0,9.961e-05,2]
[422039565,1778518238000,-500.0,9.961e-05,2]
[422039566,1778518238000,-318.79840182,9.961e-05,2]
[422039571,1778518238000,-192.37477383,9.961e-05,2]
[422039561,1778518238000,-500.0,9.961e-05,2]
[422039562,1778518238000,-500.0,9.961e-05,2]
[422039547,1778518238000,-1161.2974282,9.425e-05,2]
[422039553,1778518238000,-500.0,9.961e-05,2]
[422039551,1778518238000,-588.74576155,9.961e-05,2]
[422039554,1778518238000,-305.6080512,9.961e-05,2]
[422039550,1778518238000,-500.0,9.961e-05,2]
[422039552,1778518238000,-500.0,9.961e-05,2]
[422039548,1778518238000,-185.64477477,9.693e-05,2]
[422039549,1778518238000,-360.5096778,9.961e-05,2]
[422039569,1778518238000,-500.0,9.961e-05,2]
[422039560,1778518238000,-194.3919488,9.961e-05,2]
[422039570,1778518238000,-500.0,9.961e-05,2]
[422039564,1778518238000,-500.0,9.961e-05,2]
[422039583,1778518238000,-500.0,9.961e-05,2]
[422039573,1778518238000,-500.0,9.961e-05,2]
[422039591,1778518238000,-484.042256,9.962e-05,2]
[422039590,1778518238000,-971478.04167077,9.962e-05,2]
[422039589,1778518238000,-160444.7438522,9.962e-05,2]
[422039587,1778518238000,-500.0,9.961e-05,2]
[422039585,1778518238000,-500.0,9.961e-05,2]
[422039586,1778518238000,-500.0,9.961e-05,2]
[422039582,1778518238000,-500.0,9.961e-05,2]
[422039576,1778518238000,-480.26392943,9.961e-05,2]
[422039588,1778518238000,-300.0,9.961e-05,2]
[422039578,1778518238000,-500.0,9.961e-05,2]
[422039580,1778518238000,-362.77889037,9.961e-05,2]
[422039579,1778518238000,-500.0,9.961e-05,2]
[422039577,1778518238000,-500.0,9.961e-05,2]
[422039572,1778518238000,-500.0,9.961e-05,2]
[422039574,1778518238000,-500.0,9.961e-05,2]
[422039584,1778518238000,-500.0,9.961e-05,2]
[422039575,1778518238000,-500.0,9.961e-05,2]
[422039581,1778518238000,-500.0,9.961e-05,2]
[422039599,1778518240000,-68347.86116528,9.962e-05,2]
[422039598,1778518240000,-2987.63384,9.962e-05,2]
[422039637,1778518246000,-19725.15055389,9.962e-05,2]
[422039638,1778518247000,-528.79904169,9.962e-05,2]
[422039705,1778519432000,-438.11437354,9.425e-05,2]
[422039704,1778519432000,-200.0,9.129e-05,2]
[422039706,1778519432000,-190.10385111,9.493e-05,2]
[422039709,1778519432000,-500.0,9.561e-05,2]
[422039710,1778519432000,-500.0,9.561e-05,2]
[422039708,1778519432000,-252.35677446,9.561e-05,2]
[422039707,1778519432000,-1039.0,9.56e-05,2]
[422039712,1778519432000,-500.0,9.561e-05,2]
[422039717,1778519432000,-500.0,9.561e-05,2]
[422039713,1778519432000,-595.86432115,9.561e-05,2]
[422039715,1778519432000,-500.0,9.561e-05,2]
[422039714,1778519432000,-500.0,9.561e-05,2]
[422039716,1778519432000,-500.0,9.561e-05,2]
[422039721,1778519432000,-876.86326639,9.562e-05,2]
[422039719,1778519432000,-300.0,9.561e-05,2]
[422039718,1778519432000,-500.0,9.561e-05,2]
[422039720,1778519432000,-9540.61458396,9.562e-05,2]
[422039711,1778519432000,-522.12203308,9.561e-05,2]
[422039784,1778519438000,-2201.66351195,9.562e-05,2]
[422039757,1778519438000,-6022.82559765,9.562e-05,2]
[422039752,1778519438000,-16.52526524,9.562e-05,2]
[422039749,1778519438000,-1268.88875421,9.562e-05,2]
[422039897,1778519440000,-10854.22642804,9.562e-05,2]
[422039893,1778519440000,-710.66587433,9.562e-05,2]
[422039894,1778519440000,-384.033501,9.562e-05,2]
[422039896,1778519440000,-29448.20079286,9.562e-05,2]
[422039899,1778519440000,-558.0,9.562e-05,2]
[422039898,1778519440000,-975.0,9.562e-05,2]
[422039900,1778519440000,-2208.71175107,9.562e-05,2]
[422039895,1778519440000,-6775.07433426,9.562e-05,2]
[422039909,1778519443000,-4368.23875983,9.562e-05,2]
[422039910,1778519443000,-1826.48960369,9.562e-05,2]
[422039916,1778519443000,-11317.58831437,9.562e-05,2]
[422039917,1778519443000,-3713.26041875,9.562e-05,2]
[422039911,1778519443000,-1324.17607391,9.562e-05,2]
[422039914,1778519443000,-695.7,9.562e-05,2]
[422039913,1778519443000,-6035.67688669,9.562e-05,2]
[422039915,1778519443000,-620.51122382,9.562e-05,2]
[422039918,1778519443000,-1909.34647797,9.562e-05,2]
[422039919,1778519443000,-15810.53395227,9.562e-05,2]
[422039912,1778519443000,-6926.84326751,9.562e-05,2]
[422039927,1778519446000,-3227.303843,9.562e-05,2]
[422039925,1778519446000,-585.22942909,9.562e-05,2]
[422039930,1778519446000,-799.65154018,9.562e-05,2]
[422039929,1778519446000,-6310.64888033,9.562e-05,2]
[422039933,1778519447000,-103748.48347735,9.662e-05,2]
[422039931,1778519447000,-1742.27814735,9.562e-05,2]
[422039932,1778519447000,-137966.77396557,9.562e-05,2]
[422039934,1778519498000,300.0,9.254e-05,28]
[422039936,1778519624000,300.0,8.962e-05,11]
[422039955,1778520616000,-200.0,8.703e-05,2]
[422040004,1778520633000,-700.0,8.9e-05,2]
[422040002,1778520633000,-200.68,8.703e-05,7]
[422040003,1778520633000,-202.50529493,8.703e-05,2]
[422040005,1778520633000,-3727.40278815,9.123e-05,2]
[422040118,1778520638000,-500.0,9.16e-05,2]
[422040117,1778520638000,-500.0,9.16e-05,2]
[422040110,1778520638000,-500.0,9.16e-05,2]
[422040121,1778520638000,-500.0,9.16e-05,2]
[422040108,1778520638000,-500.0,9.16e-05,2]
[422040107,1778520638000,-500.0,9.16e-05,2]
[422040105,1778520638000,-500.0,9.16e-05,2]
[422040103,1778520638000,-500.0,9.16e-05,2]
[422040092,1778520638000,-500.0,9.16e-05,2]
[422040090,1778520638000,-500.0,9.16e-05,2]
[422040101,1778520638000,-500.0,9.16e-05,2]
[422040096,1778520638000,-500.0,9.16e-05,2]
[422040094,1778520638000,-500.0,9.16e-05,2]
[422040083,1778520638000,-500.0,9.16e-05,2]
[422040089,1778520638000,-500.0,9.16e-05,2]
[422040088,1778520638000,-500.0,9.16e-05,2]
[422040085,1778520638000,-500.0,9.16e-05,2]
[422040081,1778520638000,-575.48542316,9.16e-05,2]
[422040079,1778520638000,-500.0,9.16e-05,2]
[422040070,1778520638000,-300.0,9.159e-05,2]
[422040072,1778520638000,-300.0,9.159e-05,2]
[422040078,1778520638000,-464.29565994,9.16e-05,2]
[422040068,1778520638000,-2016.23657825,9.123e-05,2]
[422040076,1778520638000,-1200.0,9.159e-05,2]
[422040074,1778520638000,-300.0,9.159e-05,2]
[422040099,1778520638000,-336.55381732,9.16e-05,2]
[422040123,1778520638000,-326.41176082,9.16e-05,2]
[422040138,1778520638000,-500.0,9.16e-05,2]
[422040113,1778520638000,-500.0,9.16e-05,2]
[422040178,1778520638000,-500.0,9.16e-05,2]
[422040176,1778520638000,-651.00095578,9.16e-05,2]
[422040163,1778520638000,-500.0,9.16e-05,2]
[422040161,1778520638000,-500.0,9.16e-05,2]
[422040157,1778520638000,-500.0,9.16e-05,2]
[422040159,1778520638000,-500.0,9.16e-05,2]
[422040173,1778520638000,-500.0,9.16e-05,2]
[422040171,1778520638000,-500.0,9.16e-05,2]
[422040125,1778520638000,-500.0,9.16e-05,2]
[422040167,1778520638000,-500.0,9.16e-05,2]
[422040165,1778520638000,-500.0,9.16e-05,2]
[422040155,1778520638000,-500.0,9.16e-05,2]
[422040153,1778520638000,-500.0,9.16e-05,2]
[422040169,1778520638000,-500.0,9.16e-05,2]
[422040148,1778520638000,-500.0,9.16e-05,2]
[422040115,1778520638000,-500.0,9.16e-05,2]
[422040146,1778520638000,-500.0,9.16e-05,2]
[422040126,1778520638000,-500.0,9.16e-05,2]
[422040128,1778520638000,-410.2041964,9.16e-05,2]
[422040132,1778520638000,-552.98478637,9.16e-05,2]
[422040136,1778520638000,-500.0,9.16e-05,2]
[422040134,1778520638000,-500.0,9.16e-05,2]
[422040140,1778520638000,-500.0,9.16e-05,2]
[422040130,1778520638000,-500.0,9.16e-05,2]
[422040144,1778520638000,-500.0,9.16e-05,2]
[422040151,1778520638000,-500.0,9.16e-05,2]
[422040142,1778520638000,-500.0,9.16e-05,2]
[422040192,1778520639000,-500.0,9.16e-05,2]
[422040188,1778520639000,-500.0,9.16e-05,2]
[422040194,1778520639000,-500.0,9.16e-05,2]
[422040199,1778520639000,-500.0,9.16e-05,2]
[422040186,1778520639000,-500.0,9.16e-05,2]
[422040180,1778520639000,-500.0,9.16e-05,2]
[422040196,1778520639000,-500.0,9.16e-05,2]
[422040184,1778520639000,-500.0,9.16e-05,2]
[422040182,1778520639000,-500.0,9.16e-05,2]
[422040201,1778520639000,-500.0,9.16e-05,2]
[422040190,1778520639000,-500.0,9.16e-05,2]
[422040203,1778520639000,-500.0,9.16e-05,2]
[422040224,1778520639000,-500.0,9.261e-05,2]
[422040207,1778520639000,-500.0,9.16e-05,2]
[422040228,1778520639000,-5818.31215015,9.261e-05,2]
[422040227,1778520639000,-1393986.48400164,9.261e-05,2]
[422040226,1778520639000,-483601.59351341,9.261e-05,2]
[422040218,1778520639000,-387139.13322342,9.161e-05,2]
[422040220,1778520639000,-641.054,9.175e-05,2]
[422040205,1778520639000,-500.0,9.16e-05,2]
[422040214,1778520639000,-1125978.79091368,9.161e-05,2]
[422040216,1778520639000,-51510.67439688,9.161e-05,2]
[422040211,1778520639000,-135371.40146602,9.161e-05,2]
[422040209,1778520639000,-499.99999999,9.16e-05,2]
[422040223,1778520639000,-2763.16811609,9.26e-05,2]
[422040276,1778520644000,-609.82290944,9.261e-05,2]
[422040274,1778520644000,-7991.69968715,9.261e-05,2]
[422040275,1778520644000,-499010.38870211,9.261e-05,2]
[422040281,1778520646000,-17829.47450853,9.261e-05,2]
[422040282,1778520647000,-80035.69889554,9.261e-05,2]
[422040286,1778521176000,9999.0,0.00012,120]
[422040292,1778521738000,437.237,0.0001,10]
[422040360,1778521832000,-500.0,8.96e-05,2]
[422040362,1778521832000,-500.0,8.96e-05,2]
[422040364,1778521832000,-500.0,8.96e-05,2]
[422040339,1778521832000,-500.0,8.96e-05,2]
[422040358,1778521832000,-500.0,8.96e-05,2]
[422040354,1778521832000,-500.0,8.96e-05,2]
[422040352,1778521832000,-587.05026936,8.96e-05,2]
[422040335,1778521832000,-512.843,8.782e-05,2]
[422040330,1778521832000,-206.96406076,8.253e-05,2]
[422040346,1778521832000,-479.89117481,8.96e-05,2]
[422040337,1778521832000,-300.0,8.959e-05,2]
[422040350,1778521832000,-500.0,8.96e-05,2]
[422040348,1778521832000,-152.83979621,8.96e-05,2]
[422040341,1778521832000,-500.0,8.96e-05,2]
[422040343,1778521832000,-20.10882519,8.96e-05,2]
[422040368,1778521832000,-364.28038198,8.96e-05,2]
[422040333,1778521832000,-200.0,8.517e-05,2]
[422040328,1778521832000,-394.69082274,7.99e-05,2]
[422040370,1778521832000,-516.77788397,8.96e-05,2]
[422040366,1778521832000,-330.23540783,8.96e-05,2]
[422040405,1778521832000,-47153.06439841,8.961e-05,2]
[422040403,1778521832000,-191.69842343,8.96e-05,2]
[422040389,1778521832000,-500.0,8.96e-05,2]
[422040401,1778521832000,-500.0,8.96e-05,2]
[422040387,1778521832000,-500.0,8.96e-05,2]
[422040381,1778521832000,-509.78960635,8.96e-05,2]
[422040399,1778521832000,-500.0,8.96e-05,2]
[422040385,1778521832000,-500.0,8.96e-05,2]
[422040391,1778521832000,-500.0,8.96e-05,2]
[422040383,1778521832000,-500.0,8.96e-05,2]
[422040395,1778521832000,-500.0,8.96e-05,2]
[422040397,1778521832000,-500.0,8.96e-05,2]
[422040393,1778521832000,-500.0,8.96e-05,2]
[422040380,1778521832000,-500.0,8.96e-05,2]
[422040372,1778521832000,-500.0,8.96e-05,2]
[422040376,1778521832000,-500.0,8.96e-05,2]
[422040378,1778521832000,-500.0,8.96e-05,2]
[422040407,1778521832000,-156147.31361973,8.961e-05,2]
[422040374,1778521832000,-404.46350473,8.96e-05,2]
[422041069,1778521840000,-1788.92292671,8.961e-05,2]
[422041082,1778521841000,-394.65,8.961e-05,2]
[422041105,1778521842000,-500.0,9.243e-05,2]
[422041099,1778521842000,-4905.2169212,9.22e-05,2]
[422041097,1778521842000,-32570.4391059,9.22e-05,2]
[422041101,1778521842000,-500.0,9.243e-05,2]
[422041100,1778521842000,-831.2136987,9.22e-05,2]
[422041102,1778521842000,-500.0,9.243e-05,2]
[422041103,1778521842000,-500.0,9.243e-05,2]
[422041095,1778521842000,-817175.66849772,8.961e-05,2]
[422041108,1778521842000,-500.0,9.243e-05,2]
[422041106,1778521842000,-500.0,9.243e-05,2]
[422041096,1778521842000,-926.34400923,8.961e-05,2]
[422041093,1778521842000,-695076.05681586,8.961e-05,2]
[422041092,1778521842000,-2423.77,8.961e-05,2]
[422041094,1778521842000,-882824.33150228,8.961e-05,2]
[422041091,1778521842000,-932.97789922,8.961e-05,2]
[422041107,1778521842000,-509.00606429,9.243e-05,2]
[422041104,1778521842000,-500.0,9.243e-05,2]
[422041114,1778521842000,-500.0,9.243e-05,2]
[422041120,1778521842000,-414.59121633,9.243e-05,2]
[422041126,1778521842000,-1055.063143,9.261e-05,2]
[422041124,1778521842000,-163.70188052,9.243e-05,2]
[422041122,1778521842000,-500.0,9.243e-05,2]
[422041123,1778521842000,-500.0,9.243e-05,2]
[422041115,1778521842000,-500.0,9.243e-05,2]
[422041116,1778521842000,-535.30904542,9.243e-05,2]
[422041117,1778521842000,-500.0,9.243e-05,2]
[422041118,1778521842000,-500.0,9.243e-05,2]
[422041112,1778521842000,-500.0,9.243e-05,2]
[422041125,1778521842000,-500.0,9.243e-05,2]
[422041113,1778521842000,-500.0,9.243e-05,2]
[422041111,1778521842000,-500.0,9.243e-05,2]
[422041121,1778521842000,-500.0,9.243e-05,2]
[422041109,1778521842000,-500.0,9.243e-05,2]
[422041119,1778521842000,-500.0,9.243e-05,2]
[422041110,1778521842000,-500.0,9.243e-05,2]
[422041138,1778521844000,-1930.04165381,9.261e-05,2]
[422041155,1778521847000,-5596.86798474,9.261e-05,2]
[422041154,1778521847000,-470.09113638,9.261e-05,2]
[422041158,1778521967000,151.0,0.00012,120]
[422041160,1778522017000,151.0,0.00012,120]
[422041161,1778522056000,151.0,0.00012,120]
[422041162,1778522087000,151.0,0.00012,120]
[422041293,1778523038000,-200.0,8.487e-05,2]
[422041295,1778523038000,-500.0,8.627e-05,2]
[422041299,1778523038000,-500.0,8.627e-05,2]
[422041301,1778523038000,-500.0,8.627e-05,2]
[422041312,1778523038000,-500.0,8.627e-05,2]
[422041308,1778523038000,-597.91497712,8.627e-05,2]
[422041305,1778523038000,-500.0,8.627e-05,2]
[422041304,1778523038000,-612.29709119,8.627e-05,2]
[422041313,1778523038000,-500.0,8.627e-05,2]
[422041311,1778523038000,-500.0,8.627e-05,2]
[422041303,1778523038000,-275.78794122,8.627e-05,2]
[422041307,1778523038000,-500.0,8.627e-05,2]
[422041309,1778523038000,-557.37671998,8.627e-05,2]
[422041310,1778523038000,-500.0,8.627e-05,2]
[422041314,1778523038000,-449.33194231,8.627e-05,2]
[422041316,1778523038000,-500.0,8.627e-05,2]
[422041326,1778523038000,-500.0,8.66e-05,2]
[422041306,1778523038000,-500.0,8.627e-05,2]
[422041297,1778523038000,-500.0,8.627e-05,2]
[422041280,1778523038000,-300.0,7.599e-05,2]
[422041300,1778523038000,-500.0,8.627e-05,2]
[422041278,1778523038000,-300.0,7.599e-05,2]
[422041282,1778523038000,-233.62341004,7.6e-05,2]
[422041283,1778523038000,-47252.4088596,7.6e-05,2]
[422041286,1778523038000,-300.0,7.751e-05,2]
[422041279,1778523038000,-300.0,7.599e-05,2]
[422041284,1778523038000,-39075.51948797,7.6e-05,2]
[422041281,1778523038000,-1200.0,7.599e-05,2]
[422041325,1778523038000,-500.0,8.66e-05,2]
[422041285,1778523038000,-600.0,7.751e-05,2]
[422041287,1778523038000,-470.85621855,8.113e-05,2]
[422041288,1778523038000,-256.4921231,8.198e-05,2]
[422041289,1778523038000,-151.0,8.207e-05,2]
[422041290,1778523038000,-420.0,8.359e-05,2]
[422041296,1778523038000,-500.0,8.627e-05,2]
[422041292,1778523038000,-1680.0,8.359e-05,2]
[422041291,1778523038000,-364.0,8.359e-05,2]
[422041298,1778523038000,-500.0,8.627e-05,2]
[422041294,1778523038000,-720.0,8.526e-05,2]
[422041327,1778523038000,-153.49683998,8.66e-05,2]
[422041302,1778523038000,-500.0,8.627e-05,2]
[422041317,1778523038000,-500.0,8.627e-05,2]
[422041353,1778523038000,-3606.42432973,9.083e-05,2]
[422041343,1778523038000,-410.274,8.76e-05,2]
[422041352,1778523038000,-2028.61368548,9.083e-05,2]
[422041342,1778523038000,-500.0,8.76e-05,2]
[422041344,1778523038000,-164.5562762,8.832e-05,2]
[422041351,1778523038000,-901.60608243,9.083e-05,2]
[422041346,1778523038000,-1661.0179317,8.967e-05,2]
[422041347,1778523038000,-24312.9317379,8.967e-05,2]
[422041349,1778523038000,-500.0,9.034e-05,2]
[422041345,1778523038000,-1641.4273557,8.967e-05,2]
[422041350,1778523038000,-225.40152061,9.083e-05,2]
[422041348,1778523038000,-8034.8917829,8.967e-05,2]
[422041354,1778523038000,-5635.03801521,9.083e-05,2]
[422041356,1778523038000,-587.0,9.195e-05,2]
[422041355,1778523038000,-8106.34028716,9.083e-05,2]
[422041357,1778523038000,-2351.0,9.195e-05,2]
[422041359,1778523038000,-864220.63846881,9.261e-05,2]
[422041338,1778523038000,-344197.27516717,8.661e-05,2]
[422041333,1778523038000,-500.0,8.66e-05,2]
[422041339,1778523038000,-152.0,8.7e-05,7]
[422041334,1778523038000,-500.0,8.66e-05,2]
[422041318,1778523038000,-500.0,8.627e-05,2]
[422041322,1778523038000,-928.06070179,8.629e-05,2]
[422041321,1778523038000,-3248.24711234,8.629e-05,2]
[422041320,1778523038000,-1445.11049376,8.629e-05,2]
[422041324,1778523038000,-500.0,8.66e-05,2]
[422041323,1778523038000,-3708.53056436,8.629e-05,2]
[422041319,1778523038000,-361.27762344,8.629e-05,2]
[422041328,1778523038000,-500.0,8.66e-05,2]
[422041315,1778523038000,-500.0,8.627e-05,2]
[422041330,1778523038000,-500.0,8.66e-05,2]
[422041358,1778523038000,-161.13515092,9.243e-05,2]
[422041341,1778523038000,-152.0,8.703e-05,7]
[422041329,1778523038000,-500.0,8.66e-05,2]
[422041331,1778523038000,-500.0,8.66e-05,2]
[422041336,1778523038000,-500.0,8.66e-05,2]
[422041337,1778523038000,-400.0,8.66e-05,2]
[422041332,1778523038000,-544.92617547,8.66e-05,2]
[422041335,1778523038000,-500.0,8.66e-05,2]
[422041340,1778523038000,-164.5562762,8.7e-05,2]
[422041361,1778523039000,-163263.48044208,9.261e-05,2]
[422041360,1778523039000,-6948.11044294,9.261e-05,2]
[422041363,1778523039000,-882824.33150228,9.261e-05,2]
[422041362,1778523039000,-3573.67861095,9.261e-05,2]
[422041378,1778523040000,-965.67011052,9.261e-05,2]
[422041377,1778523040000,-4545.87898687,9.261e-05,2]
[422041375,1778523040000,-3470.0,9.261e-05,2]
[422041376,1778523040000,-2304.04507,9.261e-05,2]
[422041373,1778523040000,-6308.34319775,8.207e-05,2]
[422041374,1778523040000,-1098.57024548,9.261e-05,2]
[422041399,1778523043000,-7959.4,9.261e-05,2]
[422041400,1778523043000,-8158.14716759,9.261e-05,2]
[422041401,1778523043000,-161784.12937856,9.261e-05,2]
[422041450,1778523046000,-683.27748369,9.261e-05,2]
[422041451,1778523046000,-36495.81435367,9.261e-05,2]
[422041569,1778524235000,-167.789875,7.968e-05,2]
[422041570,1778524236000,-1200.0,8.341e-05,2]
[422041572,1778524236000,-3143.23649571,8.342e-05,2]
[422041571,1778524236000,-786.59571965,8.342e-05,2]
[422041575,1778524236000,-152.0,8.703e-05,7]
[422041573,1778524236000,-247.72523021,8.364e-05,2]
[422041577,1778524236000,-500.0,8.939e-05,2]
[422041576,1778524236000,-300.0,8.779e-05,2]
[422041578,1778524236000,-6632.50237819,8.939e-05,2]
[422041579,1778524236000,-562.29053449,8.939e-05,2]
[422041574,1778524236000,-151.0,8.605e-05,2]